bitfinex/quotes_SOLUSD_20250226
["timestamp","ask_amount","ask_price","bid_price","bid_amount"]
[1740556386031,7.19,140.31,140.25,18.90062886]
[1740556387130,0.063,140.31,140.27,0.12549]
[1740556388741,0.063,140.31,140.27,7.25449]
[1740556389354,0.063,140.31,140.29,0.12549]
[1740556390266,0.063,140.31,140.3,25.90263886]
[1740556392464,0.063,140.31,140.3,30.91223262]
[1740556393143,0.063,140.31,140.3,31.03772262]
[1740556393340,0.063,140.31,140.3,32.69292262]
[1740556394252,0.063,140.31,140.3,115.59292262]
[1740556395163,0.063,140.34,140.33,71.59128]
[1740556395340,0.063,140.37,140.36,20.25098]
[1740556395546,0.063,140.37,140.36,121.80062886]
[1740556396560,0.063,140.37,140.36,130.71134423]
[1740556401160,0.063,140.37,140.36,128.92512886]
[1740556402464,0.063,140.37,140.35,0.12549]
[1740556404069,0.063,140.37,140.35,7.25049]
[1740556404574,0.063,140.37,140.33,1.6642]
[1740556404953,0.063,140.37,140.33,8.7901]
[1740556407868,0.063,140.37,140.33,7.1259]
[1740556409171,0.063,140.37,140.33,7.1889]
[1740556410975,0.063,140.37,140.34,18.90062886]
[1740556411874,0.063,140.37,140.33,0.063]
[1740556413377,0.063,140.37,140.34,18.77513886]
[1740556413977,0.063,140.37,140.35,7.125]
[1740556417377,80.663,140.37,140.33,0.063]
[1740556419354,7.1245,140.36,140.33,0.063]
[1740556419753,80.6,140.35,140.33,0.063]
[1740556421479,7.1255,140.34,140.33,0.063]
[1740556421780,87.7255,140.34,140.33,0.063]
[1740556423888,90.53819692,140.34,140.33,0.063]
[1740556426086,87.7255,140.34,140.33,0.063]
[1740556426983,7.1255,140.34,140.33,0.063]
[1740556427287,27.1255,140.34,140.33,0.063]
[1740556432792,27.1555,140.34,140.33,0.063]
[1740556434588,20.0,140.3,140.24,0.03]
[1740556435304,3.63969513,140.3,140.24,0.03]
[1740556435607,20.0,140.29,140.24,0.03]
[1740556436403,20.0,140.27,140.24,0.03]
[1740556436598,7.1296,140.26,140.24,0.03]
[1740556437098,88.2296,140.26,140.24,0.03]
[1740556440793,81.1,140.26,140.24,0.03]
[1740556441579,20.0,140.27,140.24,0.03]
[1740556441580,20.0,140.27,140.24,1.6244]
[1740556441888,81.1,140.29,140.24,20.39953886]
[1740556443105,81.1,140.29,140.24,1.6244]
[1740556443106,88.2282,140.29,140.24,1.6244]
[1740556443412,88.16891627,140.29,140.24,1.6244]
[1740556444907,81.04071627,140.28,140.24,1.6244]
[1740556445311,81.04071627,140.28,140.24,27.40464886]
[1740556446329,81.04071627,140.32,140.25,18.77513886]
[1740556446499,81.04071627,140.32,140.26,7.1296]
[1740556447389,0.03,140.34,140.27,18.90062886]
[1740556448001,0.03,140.34,140.3,1.6486]
[1740556448514,0.03,140.34,140.31,7.127]
[1740556451817,81.07071627,140.34,140.3,1.6486]
[1740556452595,81.04071627,140.33,140.27,1.6374]
[1740556452900,81.04071627,140.32,140.27,1.6374]
[1740556453412,7.127,140.31,140.27,1.6374]
[1740556453619,88.16731627,140.32,140.27,1.6374]
[1740556454115,20.0,140.28,140.24,0.03]
[1740556454319,81.04071627,140.27,140.24,0.03]
[1740556455398,88.17001627,140.27,140.24,0.03]
[1740556457236,20.0,140.25,140.24,0.03]
[1740556457399,88.17001627,140.27,140.24,0.03]
[1740556457400,81.04071627,140.26,140.24,0.03]
[1740556458924,7.04360642,140.25,140.24,0.03]
[1740556465206,88.08432269,140.25,140.24,0.03]
[1740556466726,88.20981269,140.25,140.24,0.03]
[1740556468035,7.1321,140.21,140.19,0.03]
[1740556468335,81.1,140.2,140.19,0.03]
[1740556471623,81.1,140.25,140.19,0.03]
[1740556472127,81.1,140.24,140.2,8.7369]
[1740556472944,81.1,140.28,140.21,18.90062886]
[1740556473440,81.1,140.27,140.21,18.90062886]
[1740556473848,81.13,140.29,140.21,101.80062886]
[1740556474144,81.13,140.29,140.24,0.12549]
[1740556475937,81.13,140.29,140.25,8.2578]
[1740556476139,0.03,140.29,140.26,18.90062886]
[1740556478223,0.03,140.29,140.26,26.03002886]
[1740556489138,0.03,140.29,140.26,126.75402886]
[1740556491142,0.03,140.32,140.29,0.12549]
[1740556491536,0.03,140.32,140.3,6.6]
[1740556492744,0.03,140.32,140.3,13.7271]
[1740556493641,0.03,140.32,140.3,6.6]
[1740556493843,0.03,140.32,140.3,13.7275]
[1740556495752,20.0,140.28,140.23,1.5483]
[1740556495939,20.0,140.27,140.23,1.5483]
[1740556498936,7.1292,140.27,140.23,1.5483]
[1740556499351,3.49260103,140.28,140.23,1.5483]
[1740556499655,10.62130103,140.28,140.23,1.5483]
[1740556500066,81.1,140.27,140.22,0.03]
[1740556500657,81.1,140.26,140.22,0.03]
[1740556500843,87.7,140.26,140.22,0.03]
[1740556501943,7.1301,140.25,140.22,0.03]
[1740556502134,81.1,140.24,140.22,0.03]
[1740556502549,84.00902537,140.24,140.22,0.03]
[1740556502765,81.1,140.24,140.22,0.03]
[1740556503150,81.1,140.23,140.22,0.03]
[1740556503747,20.0,140.2,140.19,0.03]
[1740556503952,27.1326,140.2,140.19,0.03]
[1740556507471,27.1326,140.2,140.19,0.0001]
[1740556508259,45.08969,140.2,140.17,0.14933869]
[1740556508567,0.12549,140.19,140.15,0.22995216]
[1740556508759,20.0,140.16,140.15,5.216e-05]
[1740556509146,1.12549,140.19,140.15,5.216e-05]
[1740556509147,20.0,140.17,140.15,5.216e-05]
[1740556510176,27.1347,140.16,140.15,5.216e-05]
[1740556511551,26.72549,140.16,140.15,5.216e-05]
[1740556511870,26.6,140.16,140.15,5.216e-05]
[1740556512676,30.22684422,140.16,140.15,5.216e-05]
[1740556513547,37.36154422,140.16,140.15,5.216e-05]
[1740556514850,3.62684422,140.16,140.15,5.216e-05]
[1740556515052,7.1343,140.17,140.15,5.216e-05]
[1740556515259,20.0,140.16,140.15,5.216e-05]
[1740556515869,10.76092256,140.19,140.15,5.216e-05]
[1740556516173,3.62762256,140.19,140.15,5.216e-05]
[1740556516770,3.62762256,140.19,140.15,0.03005216]
[1740556517177,20.0,140.17,140.15,0.03005216]
[1740556517873,7.1347,140.16,140.15,0.03005216]
[1740556521977,7.1347,140.16,140.12,0.063]
[1740556522979,81.1,140.15,140.12,0.063]
[1740556523164,7.1357,140.14,140.12,0.063]
[1740556525302,0.03,140.34,140.17,7.6206]
[1740556525582,0.03,140.34,140.33,0.12549]
[1740556525769,0.03,140.34,140.33,25.66964886]
[1740556525966,0.03,140.34,140.33,25.79513886]
[1740556526383,0.03,140.34,140.33,25.92062886]
[1740556526576,0.03,140.34,140.33,33.04662886]
[1740556526871,0.03,140.34,140.3,0.12549]
[1740556527293,0.03,140.34,140.3,18.90062886]
[1740556528676,0.03,140.34,140.3,27.02812886]
[1740556528876,0.03,140.34,140.3,28.02812886]
[1740556529190,0.03,140.34,140.32,18.90062886]
[1740556530377,0.03,140.34,140.32,238.00062886]
[1740556531012,0.063,140.37,140.34,18.90062886]
[1740556531218,0.063,140.38,140.37,0.12549]
[1740556533212,0.063,140.38,140.37,7.24949]
[1740556534883,0.063,140.38,140.37,7.124]
[1740556535380,0.063,140.38,140.37,7.37498]
[1740556535685,0.063,140.38,140.37,26.02462886]
[1740556537009,20.0,140.46,140.38,18.77513886]
[1740556537905,20.0,140.46,140.39,7.123]
[1740556538798,81.1,140.44,140.4,18.90062886]
[1740556539103,0.063,140.48,140.4,18.90062886]
[1740556539104,81.163,140.47,140.4,18.90062886]
[1740556539912,0.063,140.47,140.42,0.12549]
[1740556542797,0.063,140.47,140.43,24.9233]
[1740556547802,0.063,140.47,140.43,17.8024]
[1740556548622,31.68767773,140.5,140.43,17.8024]
[1740556548796,31.68767773,140.49,140.43,17.8024]
[1740556551403,20.0,140.46,140.42,7.1214]
[1740556551604,20.0,140.45,140.42,7.1214]
[1740556552509,20.0,140.45,140.42,24.9251]
[1740556553313,20.0,140.45,140.42,17.8037]
[1740556559434,17.18208419,140.45,140.42,17.8037]
[1740556560038,31.68767773,140.48,140.42,17.8037]
[1740556560718,31.68767773,140.47,140.42,17.8037]
[1740556560919,31.68767773,140.46,140.42,17.8037]
[1740556561329,6.88553232,140.46,140.42,17.8037]
[1740556561935,6.88553232,140.46,140.39,18.77513886]
[1740556562126,6.88553232,140.46,140.4,24.9287]
[1740556562348,6.88553232,140.46,140.41,18.77513886]
[1740556563539,6.9,140.49,140.42,0.12549]
[1740556563732,6.88553232,140.5,140.43,18.77513886]
[1740556564336,6.88553232,140.5,140.44,7.1204]
[1740556564842,6.88553232,140.5,140.43,25.89593886]
[1740556565539,0.03,140.46,140.43,25.89593886]
[1740556570042,0.03,140.46,140.43,7.1208]
[1740556570445,0.03,140.46,140.43,25.77044886]
[1740556570950,0.03,140.46,140.44,7.8272]
[1740556572723,0.03,140.46,140.45,4.64211426]
[1740556572928,14.00293232,140.5,140.45,4.64211426]
[1740556573349,14.00293232,140.5,140.45,1.78542856]
[1740556575252,14.00293232,140.5,140.42,115.57653886]
[1740556575451,6.88553232,140.49,140.42,115.57653886]
[1740556576145,14.00343232,140.49,140.42,115.57653886]
[1740556576636,14.00343232,140.49,140.43,18.77513886]
[1740556577854,14.00343232,140.49,140.44,7.1204]
[1740556578861,14.00343232,140.49,140.43,7.1208]
[1740556583862,20.0,140.46,140.42,82.9]
[1740556584036,14.00343232,140.49,140.41,0.063]
[1740556584037,6.88553232,140.48,140.41,0.063]
[1740556584767,6.88553232,140.48,140.41,7.1848]
[1740556584939,6.88553232,140.47,140.41,7.1848]
[1740556586158,14.00443232,140.47,140.41,7.1848]
[1740556592669,14.00443232,140.47,140.42,1.78554788]
[1740556594379,14.00443232,140.47,140.41,7.1848]
[1740556596475,6.88553232,140.46,140.41,7.1848]
[1740556597968,14.00503232,140.46,140.41,7.1848]
[1740556598979,20.0,140.42,140.41,0.063]
[1740556600852,20.0,140.42,140.41,1.84885904]
[1740556602477,7.121,140.43,140.41,1.84885904]
[1740556602781,20.0,140.42,140.41,1.84885904]
[1740556604171,20.0,140.42,140.41,0.063]
[1740556604368,20.0,140.42,140.37,0.063]
[1740556604369,0.12549,140.41,140.37,0.063]
[1740556604567,7.1225,140.4,140.37,0.063]
[1740556606162,20.0,140.38,140.37,0.063]
[1740556606771,20.12549,140.38,140.37,0.063]
[1740556607083,39.90062886,140.38,140.37,0.063]
[1740556607268,40.90062886,140.38,140.37,0.063]
[1740556607470,48.02412886,140.38,140.37,0.0001]
[1740556607769,0.99389,140.35,140.28,11.16531936]
[1740556608269,0.8684,140.35,140.28,11.16531936]
[1740556608470,0.12549,140.37,140.28,11.16531936]
[1740556608672,33.4373,140.38,140.29,18.90062886]
[1740556608981,7.1219,140.41,140.31,0.25098]
[1740556609171,7.1219,140.41,140.31,18.90062886]
[1740556609361,7.1219,140.41,140.33,18.77513886]
[1740556609570,7.1219,140.41,140.33,25.90083886]
[1740556609777,17.62545715,140.46,140.35,18.77513886]
[1740556609965,17.62545715,140.46,140.36,6.66]
[1740556610274,20.0,140.42,140.36,6.66]
[1740556610476,20.0,140.42,140.37,18.77513886]
[1740556610681,7.1199,140.45,140.37,18.77513886]
[1740556610857,20.0,140.42,140.37,18.77513886]
[1740556611482,20.0,140.43,140.37,18.77513886]
[1740556611678,20.0,140.43,140.38,7.1235]
[1740556612071,20.0,140.44,140.38,7.1235]
[1740556612275,20.0,140.44,140.37,18.77513886]
[1740556612478,20.0,140.44,140.37,25.89903886]
[1740556612797,20.0,140.44,140.36,6.66]
[1740556612798,20.0,140.43,140.36,6.66]
[1740556612975,20.12549,140.42,140.34,1.5814]
[1740556613377,26.38169,140.42,140.34,1.5814]
[1740556613997,20.0,140.38,140.34,1.5814]
[1740556614176,20.0,140.38,140.34,8.7068]
[1740556614376,3.60163694,140.43,140.34,8.7068]
[1740556614677,7.1209,140.43,140.34,8.7068]
[1740556614987,20.0,140.42,140.34,8.7068]
[1740556615589,27.1218,140.42,140.34,8.7068]
[1740556615789,2.47616846,140.41,140.34,8.7068]
[1740556616082,2.47616846,140.41,140.34,8.7698]
[1740556616666,2.47616846,140.41,140.34,1.6444]
[1740556616865,27.1518,140.42,140.34,1.6444]
[1740556617763,44.9555,140.42,140.34,1.6444]
[1740556619274,20.0,140.37,140.34,0.063]
[1740556619475,81.1,140.39,140.34,0.063]
[1740556619893,20.0,140.35,140.34,0.063]
[1740556621274,38.90062886,140.35,140.34,0.063]
[1740556621578,22.39207698,140.35,140.34,0.063]
[1740556621995,29.51707698,140.35,140.34,0.063]
[1740556622502,27.125,140.35,140.34,0.063]
[1740556622873,0.12549,140.39,140.34,0.063]
[1740556623078,7.1235,140.38,140.34,0.063]
[1740556623290,7.1231,140.39,140.34,0.063]
[1740556623494,15.99212672,140.4,140.34,0.063]
[1740556623999,20.0,140.37,140.34,0.063]
[1740556624169,15.99212672,140.4,140.34,0.063]
[1740556624493,6.64,140.4,140.34,0.063]
[1740556624686,7.1221,140.41,140.34,0.063]
[1740556625009,7.1221,140.41,140.34,1.7055]
[1740556625484,20.0,140.38,140.34,1.7055]
[1740556625683,20.0,140.38,140.34,8.8307]
[1740556626996,20.0,140.39,140.34,15.1491]
[1740556627182,20.0,140.39,140.35,6.64]
[1740556628080,20.0,140.37,140.35,13.7647]
[1740556631797,0.03,140.38,140.35,13.7647]
[1740556635102,0.03,140.38,140.36,25.89933886]
[1740556635996,0.03,140.38,140.37,0.12549]
[1740556636199,0.03,140.42,140.39,0.12549]
[1740556636409,0.03,140.42,140.4,6.72549]
[1740556637591,0.03,140.42,140.4,13.84779]
[1740556638700,0.03,140.42,140.4,6.6]
[1740556639102,0.03,140.42,140.38,1.6527]
[1740556641203,0.03,140.42,140.38,1.7157]
[1740556644506,7.1514,140.42,140.38,1.7157]
[1740556646905,0.03,140.42,140.38,1.7157]
[1740556647110,0.03,140.42,140.38,0.063]
[1740556651515,0.03,140.42,140.38,7.1865]
[1740556652207,0.03,140.42,140.39,18.64964886]
[1740556653687,0.03,140.42,140.4,7.1225]
[1740556653895,0.03,140.42,140.41,25.24964886]
[1740556657207,0.03,140.42,140.41,122.13802886]
[1740556657497,0.03,140.47,140.44,0.25098]
[1740556657707,0.03,140.47,140.46,0.25098]
[1740556657907,0.03,140.47,140.46,6.85098]
[1740556658110,0.03,140.47,140.46,109.95782886]
[1740556658989,0.03,140.47,140.46,117.07722886]
[1740556659516,0.03,140.47,140.46,123.69542886]
[1740556661730,0.03,140.47,140.46,260.89542886]
[1740556663003,0.03,140.47,140.46,264.48042136]
[1740556663313,0.03,140.47,140.46,263.48042136]
[1740556663632,0.063,140.52,140.5,20.25098]
[1740556663848,0.03,140.57,140.54,20.25098]
[1740556664017,0.03,140.57,140.55,18.64964886]
[1740556664339,0.03,140.61,140.59,0.25098]
[1740556664535,0.03,140.61,140.59,83.15098]
[1740556664738,0.03,140.61,140.59,82.9]
[1740556664934,0.03,140.61,140.57,90.8756]
[1740556665113,0.03,140.61,140.6,20.12549]
[1740556665321,1.9889945,140.7,140.61,18.90062886]
[1740556665643,1.9889945,140.7,140.61,25.66062886]
[1740556666146,0.03,140.68,140.61,32.77242886]
[1740556670228,0.03,140.68,140.61,75.66242886]
[1740556670411,0.03,140.68,140.61,32.77242886]
[1740556670816,0.03,140.68,140.61,115.67242886]
[1740556674954,0.03,140.68,140.61,108.30964886]
[1740556675517,0.03,140.68,140.61,115.67242886]
[1740556676638,0.03,140.68,140.61,117.67242886]
[1740556676830,0.03,140.68,140.67,0.25098]
[1740556677022,0.03,140.68,140.67,7.01098]
[1740556677629,0.03,140.68,140.67,6.88549]
[1740556678336,0.03,140.68,140.67,25.66062886]
[1740556678722,0.03,140.68,140.67,29.26954387]
[1740556679844,0.03,140.68,140.67,36.37834387]
[1740556680644,0.03,140.68,140.67,6.76]
[1740556680833,0.03,140.68,140.62,13.97679]
[1740556681649,0.03,140.68,140.63,18.77513886]
[1740556681848,0.03,140.68,140.63,18.64964886]
[1740556683036,0.03,140.68,140.66,0.25098]
[1740556683224,0.03,140.68,140.67,25.66062886]
[1740556684128,0.03,140.68,140.67,32.76942886]
[1740556684322,0.03,140.68,140.67,115.66942886]
[1740556684729,0.03,140.68,140.67,108.30964886]
[1740556685851,1.9889945,140.7,140.67,108.30964886]
[1740556686146,1.9889945,140.7,140.68,18.90062886]
[1740556686456,1.9889945,140.7,140.69,7.35878]
[1740556686644,1.9889945,140.7,140.69,90.25878]
[1740556689655,1.9889945,140.7,140.68,18.64964886]
[1740556689861,1.9889945,140.7,140.68,25.75774886]
[1740556691655,2.0189945,140.7,140.68,25.75774886]
[1740556692265,89.7499,140.75,140.68,25.75774886]
[1740556693063,89.7499,140.75,140.68,7.1081]
[1740556693563,89.7499,140.75,140.67,90.0086]
[1740556693937,20.0,140.72,140.66,7.1091]
[1740556694146,20.0,140.71,140.66,7.1091]
[1740556694959,20.0,140.71,140.65,18.64964886]
[1740556695143,20.0,140.71,140.65,25.75944886]
[1740556695567,81.1,140.74,140.66,0.25098]
[1740556695743,88.2054,140.74,140.66,0.25098]
[1740556696841,1.5448,140.75,140.68,18.90062886]
[1740556697042,81.1,140.76,140.7,18.64964886]
[1740556698666,81.1,140.76,140.71,7.1068]
[1740556703862,81.1,140.76,140.7,7.1073]
[1740556704165,81.13,140.76,140.7,24.8756]
[1740556704660,81.13,140.76,140.7,25.75694886]
[1740556710966,88.2344,140.76,140.7,25.75694886]
[1740556711163,81.13,140.76,140.7,25.75694886]
[1740556711764,20.0,140.72,140.69,0.063]
[1740556711966,81.1,140.71,140.69,0.063]
[1740556712347,88.2072,140.71,140.69,0.063]
[1740556712547,81.1,140.7,140.69,0.063]
[1740556713764,88.2073,140.7,140.69,0.063]
[1740556714681,81.1,140.7,140.69,0.063]
[1740556717080,88.2073,140.7,140.69,0.063]
[1740556717663,88.2073,140.7,140.62,11.22831936]
[1740556717664,7.1073,140.7,140.62,11.22831936]
[1740556717862,6.4041,140.68,140.62,11.22831936]
[1740556718391,7.1088,140.67,140.62,11.22831936]
[1740556718601,81.1,140.66,140.62,11.22831936]
[1740556719493,88.2096,140.66,140.62,0.063]
[1740556720087,81.1,140.66,140.62,7.1742]
[1740556724282,7.1083,140.68,140.62,7.1742]
[1740556725485,20.0,140.67,140.62,7.1742]
[1740556725670,7.1078,140.69,140.62,7.1742]
[1740556726285,81.1,140.68,140.62,0.063]
[1740556726988,81.1,140.67,140.62,0.063]
[1740556727361,81.1,140.66,140.62,0.063]
[1740556729178,0.14981503,140.64,140.62,0.063]
[1740556731796,0.14981503,140.64,140.62,7.1743]
[1740556732778,0.14981503,140.64,140.62,0.063]
[1740556738395,0.14981503,140.64,140.62,7.1743]
[1740556739490,0.14981503,140.64,140.63,18.64964886]
[1740556739875,0.14981503,140.64,140.63,101.80062886]
[1740556740302,1.503e-05,140.64,140.63,101.80062886]
[1740556740487,1.503e-05,140.64,140.63,108.91142886]
[1740556740885,1.503e-05,140.64,140.62,13.2486]
[1740556741274,1.503e-05,140.64,140.63,18.90062886]
[1740556741801,1.503e-05,140.64,140.63,101.80062886]
[1740556742487,1.503e-05,140.64,140.63,108.91142886]
[1740556743189,0.03,140.71,140.63,126.68852886]
[1740556743384,0.03,140.71,140.65,0.25098]
[1740556743579,88.2058,140.73,140.65,0.25098]
[1740556744201,88.2058,140.73,140.7,1.25973831]
[1740556746902,88.2058,140.73,140.66,7.1091]
[1740556747087,81.1,140.72,140.64,6.58]
[1740556747288,7.1068,140.71,140.65,7.1098]
[1740556749008,5.15110241,140.7,140.65,7.1098]
[1740556750282,5.15110241,140.7,140.66,18.64964886]
[1740556751011,81.1,140.71,140.66,18.64964886]
[1740556751386,81.1,140.71,140.67,7.1088]
[1740556751590,81.13,140.73,140.67,7.1088]
[1740556752090,81.13,140.73,140.68,4.24869629]
[1740556752507,81.13,140.73,140.68,8.88199525]
[1740556752996,81.13,140.73,140.69,7.1078]
[1740556753399,88.2359,140.73,140.68,15.99019525]
[1740556753600,81.13,140.73,140.68,11.74149896]
[1740556753782,88.2358,140.73,140.68,11.74149896]
[1740556754221,88.2358,140.73,140.68,4.63329896]
[1740556754508,81.13,140.73,140.68,11.74139896]
[1740556754689,81.13,140.73,140.68,7.1081]
[1740556755204,41.41912886,140.69,140.68,6.80227748]
[1740556755412,81.35098,140.68,140.62,0.063]
[1740556755609,87.7,140.67,140.62,0.063]
[1740556757111,7.1093,140.66,140.62,0.063]
[1740556757323,81.1,140.65,140.62,0.063]
[1740556758287,7.1103,140.64,140.62,0.063]
[1740556759609,2.47570085,140.63,140.62,0.063]
[1740556760719,88.2099,140.65,140.62,0.063]
[1740556762225,81.1,140.64,140.62,0.063]
[1740556762521,88.2104,140.64,140.62,0.063]
[1740556765112,81.1,140.63,140.62,0.063]
[1740556765505,83.57443903,140.63,140.62,0.063]
[1740556766938,90.68523903,140.63,140.62,0.063]
[1740556767128,98.21160398,140.63,140.62,0.063]
[1740556768822,14.74823253,140.63,140.62,0.063]
[1740556770207,12.2737935,140.63,140.62,0.063]
[1740556772737,7.1108,140.63,140.62,0.063]
[1740556774319,26.01142886,140.63,140.62,0.063]
[1740556774535,0.25098,140.62,140.56,6.6]
[1740556774725,0.25098,140.62,140.55,0.063]
[1740556775532,33.0602,140.63,140.55,7.1777]
[1740556776038,15.2831,140.63,140.55,7.1777]
[1740556776437,33.93274886,140.63,140.55,0.063]
[1740556778322,81.1,140.61,140.55,0.063]
[1740556778723,88.2119,140.61,140.55,0.063]
[1740556780645,81.1,140.61,140.55,0.063]
[1740556782552,81.1,140.61,140.55,0.31398]
[1740556782729,15.84409116,140.64,140.55,83.21398]
[1740556782730,81.1,140.64,140.55,83.21398]
[1740556783839,0.03,140.65,140.58,0.25098]
[1740556784046,0.03,140.65,140.59,6.6]
[1740556784545,81.1,140.64,140.59,6.6]
[1740556785643,7.1399,140.65,140.55,13.809]
[1740556785644,99.74964886,140.63,140.55,13.809]
[1740556785843,81.1,140.62,140.55,0.063]
[1740556786029,7.1118,140.61,140.55,0.063]
[1740556786436,81.1,140.6,140.55,0.063]
[1740556786641,81.1,140.59,140.55,0.063]
[1740556786939,81.1,140.59,140.58,0.063]
[1740556788550,88.2128,140.59,140.58,0.063]
[1740556789563,1.87468,140.58,140.55,0.063]
[1740556789868,7.1143,140.56,140.55,0.063]
[1740556790030,26.01492886,140.56,140.55,0.063]
[1740556790362,33.61492886,140.56,140.55,0.0001]
[1740556790560,40.22432886,140.56,140.55,0.0001]
[1740556791658,41.22432886,140.56,140.55,0.0001]
[1740556792655,43.68618563,140.56,140.55,0.0001]
[1740556793861,47.24843979,140.56,140.55,0.0001]
[1740556794162,44.78658302,140.56,140.55,0.0001]
[1740556794943,20.90062886,140.55,140.54,0.0431]
[1740556796042,19.90062886,140.55,140.54,0.0431]
[1740556796238,0.25098,140.55,140.54,0.0431]
[1740556796960,17.27655416,140.56,140.54,0.0431]
[1740556797635,0.25098,140.55,140.54,0.0431]
[1740556797839,27.01552886,140.55,140.54,0.0431]
[1740556799359,7.36588,140.55,140.54,0.0431]
[1740556799566,7.24039,140.55,140.54,0.0431]
[1740556799866,7.36588,140.55,140.54,0.0431]
[1740556803851,7.36588,140.55,140.48,0.063]
[1740556804055,7.36588,140.55,140.49,4.98478963]
[1740556804865,20.0,140.5,140.49,4.98478963]
[1740556805565,7.1159,140.53,140.49,4.98478963]
[1740556805769,7.1159,140.53,140.48,0.063]
[1740556806350,11.41323416,140.56,140.48,6.1905]
[1740556806351,7.1149,140.55,140.48,6.1905]
[1740556806778,20.0,140.52,140.48,0.063]
[1740556807668,101.1,140.51,140.48,0.063]
[1740556807871,82.35098,140.5,140.48,0.063]
[1740556808046,26.6,140.51,140.48,0.063]
[1740556808047,81.35098,140.49,140.48,0.063]
[1740556808555,0.25098,140.49,140.48,0.063]
[1740556808759,1.0,140.48,140.47,0.0001]
[1740556808967,20.0,140.45,140.43,0.063]
[1740556809779,20.0,140.46,140.43,0.063]
[1740556809975,9.57046205,140.49,140.43,0.063]
[1740556810273,2.45256205,140.49,140.46,18.64964886]
[1740556811171,2.45256205,140.49,140.46,25.76874886]
[1740556811365,9.61916364,140.55,140.47,0.25098]
[1740556811570,7.1153,140.55,140.48,18.64964886]
[1740556811765,7.1153,140.55,140.5,8.0139]
[1740556812856,17.7838,140.58,140.5,8.0139]
[1740556812857,7.1143,140.56,140.5,8.0139]
[1740556813682,88.2143,140.56,140.5,15.1311]
[1740556813969,81.1,140.56,140.5,15.1311]
[1740556816168,88.213,140.59,140.51,18.90062886]
[1740556816377,88.213,140.59,140.51,101.80062886]
[1740556816974,88.213,140.59,140.52,7.1164]
[1740556817608,2.62659691,140.62,140.53,27.68782886]
[1740556817773,0.03,140.62,140.56,1.523]
[1740556818168,0.03,140.62,140.57,25.22722886]
[1740556818360,0.03,140.62,140.57,6.3266]
[1740556818762,0.03,140.62,140.58,7.1133]
[1740556819153,0.03,140.62,140.57,13.4404]
[1740556820582,0.03,140.62,140.57,6.3266]
[1740556820969,81.1,140.61,140.57,6.3266]
[1740556821777,0.03,140.62,140.57,13.4402]
[1740556822173,0.03,140.62,140.57,6.3266]
[1740556824087,0.15549,140.62,140.57,6.3266]
[1740556824274,0.12549,140.6,140.53,12.7157]
[1740556824456,81.1,140.59,140.53,7.6862]
[1740556824662,81.1,140.59,140.53,14.802]
[1740556825071,81.1,140.59,140.54,18.77513886]
[1740556825272,88.2417,140.62,140.54,101.67513886]
[1740556825469,81.13,140.62,140.54,101.67513886]
[1740556825678,81.13,140.62,140.55,0.12549]
[1740556825870,81.13,140.62,140.56,18.77513886]
[1740556826189,0.03,140.62,140.56,101.67513886]
[1740556826567,0.03,140.62,140.57,1.5811]